bitfinex-derivatives/quotes_ETHF0:USTF0_20210406
["timestamp","ask_amount","ask_price","bid_price","bid_amount"]
[1617692342771,2.0,2127.9,2126.3,5.76]
[1617692342972,2.0,2128.1,2126.3,5.76]
[1617692343171,67.5762,2127.7,2126.3,5.76]
[1617692344573,2.90695,2126.4,2126.3,5.76]
[1617692355480,67.5762,2127.7,2126.3,5.76]
[1617692356883,67.5762,2127.7,2126.4,2.90695]
[1617692357383,67.5762,2127.7,2126.5,5.83]
[1617692359385,67.5762,2127.7,2126.4,2.90695]
[1617692359685,68.523,2127.7,2126.6,5.86]
[1617692359885,68.523,2127.7,2126.5,5.82]
[1617692360287,68.523,2127.7,2126.4,2.90695]
[1617692360288,68.523,2127.7,2126.7,8.5984]
[1617692360487,67.5762,2127.7,2126.7,2.8084]
[1617692360889,67.5762,2127.7,2126.8,5.65]
[1617692361090,67.55822999,2127.7,2126.8,5.65]
[1617692361489,2.90695,2126.9,2126.8,5.65]
[1617692364190,67.55822999,2127.7,2126.8,5.65]
[1617692365594,2.90695,2126.9,2126.8,5.65]
[1617692367095,2.0,2128.1,2126.8,5.65]
[1617692367795,2.90695,2126.9,2126.8,5.65]
[1617692373098,55.5898,2127.8,2126.8,5.65]
[1617692373799,2.90695,2126.9,2126.8,5.65]
[1617692377604,69.3809,2128.0,2126.8,5.65]
[1617692378205,2.90695,2126.9,2126.8,5.65]
[1617692381308,2.0,2128.0,2126.8,5.65]
[1617692382109,2.90695,2126.9,2126.8,5.65]
[1617692396226,2.90695,2126.9,2126.8,6.5959]
[1617692396525,2.90695,2126.9,2126.8,5.65]
[1617692397028,2.90695,2126.9,2126.5,5.9]
[1617692398229,2.90695,2126.9,2126.6,0.20714573]
[1617692398633,2.90695,2126.9,2126.7,5.79]
[1617692398831,0.9487,2127.3,2126.7,8.5679]
[1617692400033,70.2959,2127.5,2126.7,8.5679]
[1617692400432,2.90695,2126.8,2126.7,8.5679]
[1617692402338,2.90695,2126.8,2126.7,5.79]
[1617692402740,2.22205,2126.8,2126.5,5.82]
[1617692403038,2.22205,2126.8,2126.4,2.90695]
[1617692403039,2.22205,2126.8,2126.7,5.9]
[1617692403441,2.22205,2126.8,2126.5,5.87]
[1617692403640,2.22205,2126.8,2126.7,5.72]
[1617692404040,2.22205,2126.8,2126.5,5.73]
[1617692404241,2.22205,2126.8,2126.7,5.77]
[1617692404558,64.3822,2126.7,2126.5,5.65]
[1617692404741,66.4299,2126.7,2126.5,5.65]
[1617692405045,66.4299,2126.7,2126.1,2.90695]
[1617692405247,66.4299,2126.7,2126.6,5.71]
[1617692405447,66.4299,2126.7,2126.3,5.64]
[1617692405869,66.4299,2126.7,2126.6,5.71]
[1617692406065,66.4299,2126.7,2126.4,5.74]
[1617692406454,66.4299,2126.7,2126.6,5.77]
[1617692406649,66.4299,2126.7,2126.5,5.73]
[1617692406948,2.0,2126.6,2126.3,5.78]
[1617692407152,2.0,2126.6,2126.2,5.92]
[1617692407354,2.0,2126.6,2126.1,2.90695]
[1617692407555,2.0,2126.6,2126.4,5.92]
[1617692407752,2.0,2126.6,2126.2,5.75]
[1617692407951,2.0,2126.6,2126.1,2.90695]
[1617692408451,2.0,2126.6,2126.2,5.8]
[1617692408752,2.90695,2126.3,2126.2,5.8]
[1617692410753,2.90695,2126.3,2126.0,5.78]
[1617692411053,2.90695,2126.3,2126.2,5.8]
[1617692411354,2.90695,2126.3,2126.0,10.85149018]
[1617692411555,2.90695,2126.3,2126.2,5.65]
[1617692411978,2.90695,2126.3,2126.1,8.3071]
[1617692412154,2.90695,2126.3,2126.2,5.69]
[1617692413056,2.90695,2126.3,2126.1,10.67273428]
[1617692413356,2.90695,2126.3,2126.2,5.7]
[1617692416080,2.90695,2126.3,2126.0,4.9513638]
[1617692416296,5.15075,2126.3,2126.0,4.9513638]
[1617692416487,62.7424,2126.2,2126.0,5.77]
[1617692416866,62.7424,2126.2,2125.9,5.79]
[1617692417264,62.7424,2126.2,2126.1,5.87]
[1617692417466,62.7424,2126.2,2126.0,5.21]
[1617692417867,62.7424,2126.2,2126.1,5.72]
[1617692418068,62.7424,2126.2,2125.7,4.97544665]
[1617692418268,62.7424,2126.2,2125.9,5.78]
[1617692418468,62.7424,2126.2,2126.1,5.66]
[1617692418768,62.7424,2126.2,2125.7,4.97544665]
[1617692419088,62.7424,2126.2,2125.4,6.08137949]
[1617692419089,2.0,2126.2,2126.1,5.1213]
[1617692419288,2.0,2126.2,2125.6,4.97600772]
[1617692419289,2.0,2126.2,2125.9,5.71]
[1617692419469,2.0,2126.2,2125.5,5.61]
[1617692419669,2.0,2126.2,2126.1,0.67]
[1617692419869,2.0,2126.2,2126.0,5.42]
[1617692420069,2.0,2126.2,2125.6,10.67573242]
[1617692420368,2.0,2126.2,2126.1,3.8]
[1617692420569,2.0,2126.2,2125.6,4.97573242]
[1617692420869,2.032,2126.2,2126.1,5.89]
[1617692421069,4.032,2126.2,2126.1,5.89]
[1617692421369,4.032,2126.2,2126.0,5.89]
[1617692421571,4.032,2126.2,2126.1,5.04]
[1617692421774,4.032,2126.2,2125.6,4.97573242]
[1617692421972,4.032,2126.2,2125.9,5.83]
[1617692422172,4.032,2126.2,2126.1,5.77]
[1617692422372,4.032,2126.2,2125.8,5.7]
[1617692422572,4.032,2126.2,2126.0,5.73]
[1617692422772,4.032,2126.2,2126.1,5.06]
[1617692423072,4.032,2126.2,2125.7,3.47]
[1617692423273,4.032,2126.2,2126.1,5.77]
[1617692423573,2.0,2126.2,2125.7,5.9]
[1617692423875,2.0,2126.2,2126.1,5.66]
[1617692424277,2.0,2126.4,2125.7,5.76]
[1617692424475,2.0,2126.1,2125.5,5.65]
[1617692424675,2.0,2126.1,2125.2,4.96302123]
[1617692424876,5.92485,2125.6,2125.3,5.4]
[1617692425076,5.92485,2125.6,2125.2,4.96302123]
[1617692425478,5.92485,2125.6,2125.3,5.74]
[1617692425878,5.92485,2125.6,2125.2,5.66]
[1617692426179,5.92485,2125.6,2125.4,5.84]
[1617692426678,5.92485,2125.6,2125.2,5.86]
[1617692426881,2.90695,2125.3,2125.2,2.90695]
[1617692427081,2.90695,2125.3,2125.2,7.86989217]
[1617692427280,2.90695,2125.3,2125.2,13.58989217]
[1617692427910,2.90695,2125.3,2125.2,8.62695]
[1617692428285,2.90695,2125.3,2125.2,13.58775867]
[1617692428683,2.90695,2125.3,2125.2,8.62695]
[1617692429587,2.90695,2125.3,2125.2,5.72]
[1617692433187,5.92305,2125.3,2125.2,5.72]
[1617692436493,7.92305,2125.3,2125.2,5.72]
[1617692437193,7.92305,2125.3,2124.6,5.66]
[1617692437594,7.92305,2125.3,2125.2,5.82]
[1617692437793,7.92305,2125.3,2124.6,5.66]
[1617692438195,7.92305,2125.3,2125.2,5.76]
[1617692438397,7.92305,2125.3,2124.5,2.90695]
[1617692438594,7.92305,2125.3,2124.6,5.67]
[1617692438895,5.26285,2124.7,2124.6,5.67]
[1617692451906,5.26285,2124.7,2123.9,5.91]
[1617692452230,5.26285,2124.7,2124.6,5.8]
[1617692452606,5.26285,2124.7,2123.9,5.79]
[1617692452806,5.26285,2124.7,2124.6,5.87]
[1617692453207,5.26285,2124.7,2124.0,2.90695]
[1617692453506,5.26285,2124.7,2124.6,5.93]
[1617692453706,5.26285,2124.7,2124.1,5.69]
[1617692454006,5.26285,2124.7,2124.6,5.76]
[1617692454406,5.26285,2124.7,2124.1,5.82]
[1617692454623,5.26285,2124.7,2124.6,5.83]
[1617692455007,5.26285,2124.7,2124.1,5.78]
[1617692455409,2.90695,2124.7,2124.6,5.84]
[1617692455608,2.90695,2124.7,2124.1,5.64]
[1617692455910,2.90695,2124.7,2124.6,5.66]
[1617692456309,2.90695,2124.7,2124.1,5.8]
[1617692456509,2.90695,2124.7,2124.6,5.86]
[1617692456910,2.90695,2124.7,2124.1,5.66]
[1617692457211,2.90695,2124.7,2124.6,5.87]
[1617692457710,2.90695,2124.7,2124.1,5.81]
[1617692457909,2.90695,2124.7,2124.6,5.87]
[1617692458209,2.90695,2124.7,2124.1,5.74]
[1617692458410,2.90695,2124.7,2124.6,5.87]
[1617692458908,2.90695,2124.7,2124.1,5.74]
[1617692459120,4.81855,2124.2,2124.0,2.90695]
[1617692459610,4.81855,2124.2,2124.1,5.72]
[1617692465823,2.90695,2124.2,2124.1,5.72]
[1617692470329,4.90695,2124.2,2123.9,5.9]
[1617692470529,7.80885,2124.2,2123.9,5.9]
[1617692470728,7.80885,2124.2,2124.1,5.76]
[1617692470929,7.80885,2124.2,2123.9,5.68]
[1617692471330,37.80885,2124.2,2124.1,5.9]
[1617692471532,37.80885,2124.2,2124.0,5.39]
[1617692471931,37.80885,2124.2,2124.1,5.08]
[1617692472131,37.80885,2124.2,2123.9,5.76]
[1617692472332,2.0,2124.0,2123.9,5.76]
[1617692472550,2.0,2124.0,2123.3,3.0]
[1617692472751,2.0,2124.0,2123.9,5.73]
[1617692473032,2.0,2124.0,2123.6,5.79]
[1617692473233,2.0,2124.0,2123.4,5.86]
[1617692473432,2.0,2124.0,2123.3,3.0]
[1617692473633,2.0,2124.0,2123.7,5.78]
[1617692473833,2.0,2124.0,2123.4,5.91]
[1617692475140,2.90695,2123.5,2123.4,5.91]
[1617692478843,32.90695,2123.5,2123.4,5.91]
[1617692479345,30.0,2123.3,2121.7,2.571]
[1617692479542,2.0,2123.2,2121.7,2.571]
[1617692479744,2.0,2123.2,2122.8,5.7]
[1617692480144,2.90695,2123.5,2121.7,2.571]
[1617692480345,2.90695,2123.5,2122.9,5.74]
[1617692480743,2.90695,2123.5,2121.8,5.77]
[1617692481043,2.0,2123.4,2123.0,5.64]
[1617692481243,2.90695,2123.1,2122.4,2.90695]
[1617692481644,2.90695,2123.1,2122.5,5.68]
[1617692483244,2.90695,2122.6,2122.5,5.68]
[1617692486046,2.90695,2122.6,2122.5,6.626]
[1617692486455,2.90695,2122.6,2122.5,5.68]
[1617692487557,52.9545,2122.9,2122.5,5.68]
[1617692489253,2.90695,2122.6,2122.5,5.68]
[1617692504775,5.01305,2122.6,2122.5,5.68]
[1617692505478,65.5371,2122.2,2122.0,2.90695]
[1617692505975,65.5371,2122.2,2122.1,0.11]
[1617692506377,5.01305,2122.6,2122.1,0.11]
[1617692507376,2.90695,2122.2,2122.1,0.11]
[1617692516392,2.90695,2122.2,2122.1,0.31800122]
[1617692519497,4.91325,2122.2,2122.1,0.31800122]
[1617692520702,2.90695,2122.2,2122.1,0.31800122]
[1617692530312,5.21745,2122.2,2122.1,0.31800122]
[1617692533518,2.90695,2122.2,2122.1,0.31800122]
[1617692535624,2.90695,2122.2,2122.1,6.37770847]
[1617692539728,2.90695,2122.2,2122.1,0.31800122]
[1617692540025,2.90695,2122.2,2122.1,6.37844499]
[1617692540526,2.90695,2122.2,2122.1,0.31800122]
[1617692543326,73.28285,2122.2,2122.1,0.31800122]
[1617692551242,2.90695,2122.2,2122.1,0.31800122]
[1617692555549,2.90695,2122.2,2122.1,6.39227459]
[1617692556150,2.90695,2122.2,2122.1,0.31800122]
[1617692556451,2.90695,2122.2,2122.1,5.28630377]
[1617692557555,2.90695,2122.2,2122.1,5.07830255]
[1617692557956,2.90695,2122.2,2122.1,0.11]
[1617692558354,58.7842,2122.0,2121.9,5.88]
[1617692558653,60.82,2122.0,2121.8,7.19299022]
[1617692558854,60.82,2122.0,2121.9,0.20895279]
[1617692559055,60.82,2122.0,2121.9,6.08895279]
[1617692562258,2.0358,2122.0,2121.9,6.08895279]
[1617692562958,4.0358,2122.0,2121.9,6.08895279]
[1617692563858,4.0358,2122.0,2121.9,5.88]
[1617692564259,66.3759,2121.9,2121.7,5.89]
[1617692564459,2.0,2121.8,2121.7,5.89]
[1617692564759,2.0,2121.8,2121.5,2.571]
[1617692564959,2.0,2121.8,2121.7,3.8192522]
[1617692565159,2.0,2121.8,2121.6,5.92925133]
[1617692565459,2.0,2121.8,2121.7,5.68]
[1617692565663,4.90695,2121.8,2121.7,5.88925011]
[1617692565859,4.90695,2121.8,2121.7,0.20925011]
[1617692566059,4.90695,2121.8,2121.7,5.93925011]
[1617692566259,4.90695,2121.8,2121.7,5.73]
[1617692566660,4.90695,2121.8,2121.7,5.93925445]
[1617692566860,4.90695,2121.8,2121.7,5.73]
[1617692567061,4.90695,2121.8,2121.6,11.84791248]
[1617692567462,4.90695,2121.8,2121.7,5.86]
[1617692567662,4.90695,2121.8,2121.6,6.07791248]
[1617692568163,4.90695,2121.8,2121.7,5.68]
[1617692571591,2.0,2121.8,2121.7,5.68]
[1617692572274,4.90695,2121.8,2121.7,5.68]
[1617692576170,4.90695,2121.8,2121.6,5.72]
[1617692576472,4.90695,2121.8,2121.7,5.86]
[1617692576770,4.90695,2121.8,2121.6,11.94062535]
[1617692576978,4.90695,2121.8,2121.7,4.97505782]
[1617692577188,4.90695,2121.8,2121.7,10.87505782]
[1617692577399,4.90695,2121.8,2121.7,5.9]
[1617692577777,4.90695,2121.8,2121.7,4.97513224]
[1617692578272,4.90695,2121.8,2121.7,10.74513224]
[1617692578489,4.90695,2121.8,2121.7,5.77]
[1617692578910,4.90695,2121.8,2121.6,10.70012294]
[1617692579082,4.90695,2121.8,2121.6,5.73]
[1617692579271,4.90695,2121.8,2121.7,5.87]
[1617692579473,4.90695,2121.8,2121.6,10.62021383]
[1617692579975,4.90695,2121.8,2121.6,4.97021383]
[1617692580172,4.90695,2121.8,2121.7,5.74]
[1617692581174,2.90695,2121.8,2121.7,5.74]
[1617692583676,2.90695,2121.8,2121.7,10.71001576]
[1617692584080,2.90695,2121.8,2121.7,4.97001576]
[1617692584480,2.90695,2121.8,2121.7,10.89001576]
[1617692585877,2.90695,2121.8,2121.7,5.92]
[1617692586386,2.90695,2121.8,2121.6,4.97001101]
[1617692586585,2.90695,2121.8,2121.7,5.84]
[1617692586980,2.90695,2121.8,2121.7,10.81003994]
[1617692587281,2.90695,2121.8,2121.7,5.84]
[1617692587480,2.90695,2121.8,2121.6,4.96894104]
[1617692587679,2.90695,2121.8,2121.7,5.91]
[1617692590981,2.90695,2121.8,2121.7,10.88165426]
[1617692591282,2.90695,2121.8,2121.7,4.97165426]
[1617692591583,2.90695,2121.8,2121.7,10.80165426]
[1617692603397,2.90695,2121.8,2121.7,5.83]
[1617692603797,2.90695,2121.8,2121.6,6.07587476]
[1617692604098,2.90695,2121.8,2121.7,5.92]
[1617692605300,63.40695,2121.8,2121.6,11.91587199]
[1617692605501,63.40695,2121.8,2121.7,0.20933276]
[1617692605799,63.40695,2121.8,2121.7,5.99933276]
[1617692605998,63.40695,2121.8,2121.7,0.20933276]
[1617692606199,63.40695,2121.8,2121.7,5.87933276]
[1617692607101,63.40695,2121.8,2121.7,10.85062367]
[1617692607301,63.40695,2121.8,2121.7,10.64129091]
[1617692608602,63.40695,2121.8,2121.7,5.87933232]
[1617692613018,63.40695,2121.8,2121.7,11.95640016]
[1617692614408,63.40695,2121.8,2121.7,14.86335016]
[1617692615709,2.90695,2121.8,2121.7,14.86335016]
[1617692616009,2.90695,2121.8,2121.7,16.86335016]
[1617692616210,2.90695,2121.8,2121.7,10.78628232]
[1617692618815,2.90695,2121.8,2121.7,11.73898232]
[1617692619216,2.68825,2121.8,2121.7,11.73898232]
[1617692619419,30.0,2123.6,2121.7,11.73898232]
[1617692619818,58.613,2123.8,2121.7,11.73898232]
[1617692619819,58.613,2123.8,2122.3,4.97207498]
[1617692620022,58.613,2123.8,2122.3,10.28377498]
[1617692620321,2.0,2123.7,2122.5,4.9716149]
[1617692620641,2.90695,2122.6,2122.5,2.90695]
[1617692621074,58.613,2123.8,2122.6,5.76]
[1617692621283,30.0,2123.9,2122.6,5.76]
[1617692621421,32.0,2123.9,2122.5,8.98261601]
[1617692621621,61.0048,2124.5,2122.8,4.97069808]
[1617692621821,61.0048,2124.5,2122.8,7.98329808]
[1617692622022,61.0048,2124.5,2122.9,10.76047783]
[1617692622520,61.0048,2124.5,2123.1,2.90695]
[1617692622722,61.9377,2124.5,2123.1,2.90695]
[1617692622936,61.9377,2124.5,2123.2,5.71]
[1617692624429,2.90695,2123.3,2123.2,5.71]
[1617692640048,5.10875,2123.3,2123.2,5.71]
[1617692642448,2.90695,2123.3,2123.2,5.71]
[1617692650061,61.1671,2123.6,2123.2,5.71]
[1617692650558,61.1671,2123.6,2122.8,5.74]
[1617692650759,61.1671,2123.6,2123.3,5.71]
[1617692651259,2.90695,2122.9,2122.8,8.80695]
[1617692651559,2.90695,2122.9,2122.8,2.90695]
[1617692651759,2.90695,2122.9,2122.8,8.74695]
[1617692656676,2.90695,2122.9,2122.8,11.40115]
[1617692661373,61.1671,2123.6,2122.8,11.40115]
[1617692662173,61.1671,2123.6,2122.8,16.3598955]
[1617692663275,61.1671,2123.6,2123.4,2.90695]
[1617692663876,61.1671,2123.6,2123.5,5.91]
[1617692665276,64.07405,2123.6,2123.5,5.91]
[1617692667880,2.90695,2123.6,2123.5,5.91]
[1617692674090,2.90695,2123.6,2123.5,6.11886191]
[1617692677193,2.90695,2123.6,2123.5,5.91]
[1617692680395,2.90695,2123.6,2123.5,6.11864877]
[1617692684400,2.0,2125.4,2123.5,8.11864877]
[1617692684599,86.2272,2125.8,2123.5,8.11864877]
[1617692684898,86.2272,2125.8,2123.6,5.16297131]
[1617692685098,86.2272,2125.8,2123.7,2.0]
[1617692685399,32.0,2125.7,2124.3,2.90695]
[1617692685598,32.0,2125.7,2124.3,5.64075]
[1617692685797,32.0,2125.7,2124.4,5.91]
[1617692687403,2.90695,2124.5,2124.4,5.91]
[1617692705923,5.72975,2124.5,2124.4,5.91]
[1617692707625,74.20655,2124.5,2124.4,5.91]
[1617692708425,74.20655,2124.5,2123.0,2.0]
[1617692708426,74.20655,2124.5,2123.8,5.81]
[1617692708725,74.20655,2124.5,2124.4,5.9]
[1617692709026,74.20655,2124.5,2123.9,5.88]
[1617692709426,76.20655,2124.5,2124.4,5.73]
[1617692709626,76.20655,2124.5,2124.0,0.22]
[1617692710028,76.20655,2124.5,2124.4,5.07]
[1617692710227,76.20655,2124.5,2124.1,3.18]
[1617692710426,106.20655,2124.5,2124.1,3.18]
[1617692710626,106.20655,2124.5,2124.4,5.08]
[1617692710832,37.72975,2124.5,2124.2,2.42]
[1617692711230,67.5339,2124.2,2124.0,5.84]
[1617692711430,2.0,2124.1,2124.0,5.84]
[1617692711739,2.0,2124.1,2123.6,0.15]
[1617692711931,2.0,2124.1,2124.0,2.91]
[1617692712131,2.0,2124.1,2123.8,5.75]
[1617692712532,2.0,2124.1,2124.0,3.5]
[1617692712732,2.0,2124.1,2123.9,5.79]
[1617692713232,2.0,2124.1,2124.0,2.98]
[1617692713535,2.0,2124.1,2123.0,2.571]
[1617692713739,2.0,2123.9,2123.3,5.7]
[1617692713991,2.0,2123.9,2123.0,2.571]
[1617692713992,5.81415,2123.4,2123.0,2.571]
[1617692714336,5.81415,2123.4,2123.1,5.89]
[1617692715641,5.81415,2123.4,2122.5,10.61918354]
[1617692715846,5.68525,2122.6,2122.5,10.61918354]
[1617692716035,5.68525,2122.6,2122.5,4.95918354]
[1617692716235,5.68525,2122.6,2122.5,10.74918354]
[1617692717635,5.68525,2122.6,2122.5,5.79]
[1617692721039,63.00925,2122.6,2122.5,5.79]
[1617692724042,5.68525,2122.6,2122.5,5.79]
[1617692725044,7.68525,2122.6,2122.5,5.79]
[1617692725243,7.68525,2122.6,2121.5,5.84]
[1617692725544,7.68525,2122.6,2122.5,5.84]
[1617692725955,7.68525,2122.6,2121.5,5.85]
[1617692726143,73.051,2122.5,2121.4,2.571]
[1617692726543,73.051,2122.5,2121.6,5.91]
[1617692726743,73.051,2122.5,2121.5,5.73]
[1617692726945,73.051,2122.5,2121.4,2.571]
[1617692727243,73.051,2122.5,2121.7,5.92]
[1617692727443,73.051,2122.5,2121.5,5.83]
[1617692727645,73.051,2122.5,2121.8,5.71]
[1617692728047,2.90695,2121.9,2121.6,2.90695]
[1617692728446,5.72615,2121.9,2121.7,5.88]
[1617692731248,71.2355,2121.8,2121.7,5.88]
[1617692733051,71.2355,2121.8,2121.5,5.8]
[1617692733452,71.2355,2121.8,2121.7,5.88]
[1617692733653,71.2355,2121.8,2121.5,5.67]
[1617692733953,2.90695,2121.6,2121.4,2.571]
[1617692734452,2.90695,2121.6,2121.5,5.73]
[1617692745264,2.90695,2121.6,2120.8,5.67]
[1617692745464,2.90695,2121.6,2120.5,5.92]
[1617692745666,2.90695,2121.6,2121.5,3.89]
[1617692745864,4.90695,2121.6,2120.5,5.91]
[1617692746065,77.6533,2121.5,2120.9,2.90695]
[1617692746563,77.6533,2121.5,2121.0,5.82]
[1617692748168,2.90695,2121.1,2121.0,5.82]
[1617692748779,2.90695,2121.1,2120.5,5.68]
[1617692749071,2.90695,2121.1,2121.0,5.71]
[1617692749467,2.90695,2121.1,2120.5,5.7]
[1617692749668,2.90695,2121.1,2121.0,5.73]
[1617692749975,2.90695,2121.1,2120.4,2.571]
[1617692750177,2.90695,2121.1,2120.9,2.90695]
[1617692750468,2.90695,2121.1,2121.0,5.91]
[1617692750668,2.90695,2121.1,2120.9,2.90695]
[1617692750969,2.90695,2121.1,2121.0,5.93]
[1617692752473,2.90695,2121.1,2120.7,5.89]
[1617692752872,2.90695,2121.1,2121.0,5.78]
[1617692753111,2.90695,2121.1,2120.7,5.74]
[1617692753379,2.90695,2121.1,2121.0,5.74]
[1617692753775,2.90695,2121.1,2120.7,5.86]
[1617692753980,2.90695,2121.1,2121.0,5.77]
[1617692754290,77.6533,2121.5,2120.9,2.90695]
[1617692754672,77.6533,2121.5,2121.0,5.86]
[1617692754972,77.6533,2121.5,2120.9,2.90695]
[1617692755272,77.6533,2121.5,2121.1,5.91]
[1617692755571,77.6533,2121.5,2121.0,5.82]
[1617692755772,77.6533,2121.5,2120.9,2.90695]
[1617692755975,77.6533,2121.5,2121.2,5.67]
[1617692756172,2.90695,2121.3,2121.0,5.82]
[1617692756373,5.78845,2121.3,2120.6,2.90695]
[1617692756572,5.78845,2121.3,2120.7,3.51]
[1617692756776,5.78845,2121.3,2121.1,5.49]
[1617692756975,5.78845,2121.3,2120.6,2.90695]
[1617692757174,5.78845,2121.3,2120.8,5.94]
[1617692757374,5.78845,2121.3,2121.2,5.93]
[1617692757574,5.78845,2121.3,2120.6,2.90695]
[1617692757873,5.78845,2121.3,2121.2,5.77]
[1617692758273,5.78845,2121.3,2120.6,2.90695]
[1617692758573,5.78845,2121.3,2121.2,5.9]
[1617692758775,5.78845,2121.3,2120.7,3.3]
[1617692758977,5.78845,2121.3,2121.0,5.71]
[1617692759176,5.78845,2121.3,2121.2,5.89]
[1617692759379,5.78845,2121.3,2120.7,5.7]
[1617692759577,5.78845,2121.3,2120.6,2.90695]
[1617692759880,5.78845,2121.3,2121.2,5.85]
[1617692760079,5.78845,2121.3,2120.7,5.84]
[1617692760279,5.78845,2121.3,2121.2,5.88]
[1617692760780,5.78845,2121.3,2120.7,5.86]
[1617692760981,5.78845,2121.3,2121.2,5.74]
[1617692761181,5.78845,2121.3,2120.7,5.88]
[1617692761682,5.78845,2121.3,2121.2,5.9]
[1617692761884,5.78845,2121.3,2120.7,5.83]
[1617692762083,5.78845,2121.3,2121.2,5.86]
[1617692762283,2.8815,2121.3,2121.2,5.86]
[1617692762485,77.6533,2121.5,2120.8,5.67]
[1617692762785,4.0551,2121.3,2121.2,5.88]
[1617692763084,4.0551,2121.3,2120.9,5.75]
[1617692763485,4.0551,2121.3,2121.2,5.71]
[1617692763686,4.0551,2121.3,2120.7,3.15]
[1617692763888,58.8795,2121.2,2121.0,5.11]
[1617692764086,58.8795,2121.2,2120.9,5.93]
[1617692764292,58.8795,2121.2,2120.8,3.06]
[1617692764293,2.90695,2121.0,2120.8,3.06]
[1617692764487,2.90695,2121.0,2120.2,2.90695]
[1617692764785,2.90695,2121.0,2120.9,1.7]
[1617692764985,2.90695,2121.0,2120.6,5.93]
[1617692765186,2.90695,2121.0,2120.3,5.67]
[1617692765386,2.90695,2121.0,2120.9,5.77]
[1617692765587,2.90695,2121.0,2120.7,5.73]
[1617692765887,2.90695,2121.0,2120.9,5.81]
[1617692766288,2.90695,2121.0,2120.8,5.84]
[1617692766487,2.90695,2121.0,2120.9,5.75]
[1617692766887,2.90695,2121.0,2120.5,5.69]
[1617692767089,2.90695,2121.0,2120.9,5.68]
[1617692767390,2.90695,2121.0,2120.4,5.74]
[1617692767588,2.90695,2121.0,2120.6,5.94]
[1617692767790,2.90695,2121.0,2120.9,5.5]
[1617692767990,2.90695,2121.0,2120.5,5.25]
[1617692768190,58.8795,2121.2,2120.7,5.21]
[1617692768389,58.8795,2121.2,2120.9,5.32]
[1617692768592,58.8795,2121.2,2120.6,5.19]
[1617692768891,58.8795,2121.2,2120.8,4.88]
[1617692769092,58.8795,2121.2,2120.7,4.06]
[1617692769493,58.8795,2121.2,2120.9,4.99]
[1617692769694,58.8795,2121.2,2120.8,3.69]
[1617692769993,58.8795,2121.2,2121.0,5.2]
[1617692770293,4.90695,2121.1,2120.9,4.57]
[1617692770693,4.90695,2121.1,2120.8,4.5]
[1617692770894,4.90695,2121.1,2121.0,4.78]
[1617692771293,4.90695,2121.1,2120.9,3.72]
[1617692771493,4.90695,2121.1,2121.0,5.02]
[1617692771994,4.90695,2121.1,2120.8,5.1]
[1617692772195,4.90695,2121.1,2121.0,4.65]
[1617692772396,4.90695,2121.1,2120.2,2.90695]
[1617692772596,4.90695,2121.1,2120.9,5.66]
[1617692772797,4.90695,2121.1,2121.0,5.83]
[1617692772997,4.90695,2121.1,2119.0,10.01782824]
[1617692773197,4.90695,2121.1,2120.6,5.58]
[1617692773401,4.90695,2121.1,2121.0,5.65]
[1617692773596,4.90695,2121.1,2120.3,3.6]
[1617692773797,4.90695,2121.1,2120.7,5.0]
[1617692773996,4.90695,2121.1,2121.0,5.75]
[1617692774297,4.90695,2121.1,2120.4,4.55]
[1617692774497,4.90695,2121.1,2121.0,5.79]
[1617692774897,4.90695,2121.1,2120.5,5.85]
[1617692775097,4.90695,2121.1,2119.8,2.90695]
[1617692775297,4.90695,2121.1,2121.0,5.91]
[1617692775498,4.90695,2121.1,2120.6,5.88]
[1617692775697,4.90695,2121.1,2119.8,2.90695]
[1617692775997,4.90695,2121.1,2121.0,5.77]
[1617692776198,4.90695,2121.1,2120.7,5.93]
[1617692776398,2.90695,2120.3,2120.2,0.20869238]
[1617692776596,2.90695,2120.3,2119.8,2.90695]
[1617692776796,2.90695,2120.3,2120.2,6.07869172]
[1617692777399,2.90695,2120.3,2120.2,5.87]
[1617692778298,2.90695,2120.3,2120.2,6.07868731]
[1617692780400,2.90695,2120.3,2120.2,5.87]
[1617692780805,2.90695,2120.3,2120.2,6.07857183]
[1617692782414,2.90695,2120.3,2120.2,8.98552183]
[1617692794717,66.18795,2120.3,2120.2,8.77695]
[1617692798124,2.90695,2120.3,2120.2,8.77695]
[1617692801728,29.90695,2120.9,2120.2,8.77695]
[1617692802125,55.153,2121.1,2120.2,8.77695]
[1617692802526,53.153,2121.1,2120.7,2.90695]
[1617692803027,53.153,2121.1,2120.8,5.84]
[1617692803427,2.0,2121.0,2120.8,5.84]
[1617692804628,2.90695,2120.9,2120.8,5.84]